Cogmind - Beta 11 @@@ ROGUE MODE // 2022.04.01 @ 22:32:02 Player: Redbrew Result: Destroyed by G-50 Soldier with Heavy Laser Performance ------------- Evolutions (4) 2000 Regions Visited (7) 1400 Robots Destroyed (14) 70 Value Destroyed (528) 528 Prototype IDs (2) 40 Alien Tech Used (0) 0 Bonus (600) 600 TOTAL SCORE: 4638 Bonus ------- Met Imprinter 300 Was Imprinted 300 Cogmind --------- Core Integrity 0/850 Matter 300/300 Energy 42/100 System Corruption 0% Temperature Cool (9) Movement Core (50) Location -6/Factory Parts ------- > --- POWER (1) -------- (None) > --- PROPULSION (6) --- (None) > --- UTILITY (4) ------ (None) > --- WEAPON (4) ------- CR-A16's Behemoth Slayer > --- INVENTORY (5) ---- (None) Peak State ------------ > --- POWER ------------ Light Fission Core > --- PROPULSION ------- Medium Treads Improved Medium Treads Improved Medium Treads Improved Medium Treads > --- UTILITY ---------- Improved Heat Sink Small Storage Unit Weight Redist. System Advanced Melee Analysis Suite > --- WEAPON ----------- Light EM Pulse Cannon EM Pulse Cannon CR-A16's Behemoth Slayer > --- INVENTORY -------- Micro Nuclear Core Mining Laser [Rating: 49] Favorites ----------- Power Ion Engine Engine Ion Engine Power Core Micro Nuclear Core Propulsion Aluminum Leg Treads Improved Medium Treads Leg Aluminum Leg Utility Small Storage Unit Device Hacking Drone Bay Storage Small Storage Unit Processor Advanced Melee Analysis Suite Weapon Medium Laser Energy Gun Medium Laser Energy Cannon Light EM Pulse Cannon Ballistic Gun Assault Rifle Special Weapon Mining Laser Piercing Weapon CR-A16's Pointy Stick Build | -11 -10 -10 -9 -9 -7 -6 -6 ------- Run | Scr Mat Min Mat Min Zio Pro Fac Slots Evolved 8 | . . . 2 . . . 6 Power . | . . . . . . . . Propulsion 4 | . . . 2 . . . 2 Utility 2 | . . . . . . . 2 Weapon 2 | . . . . . . . 2 Parts Attached 31 | 6 2 6 1 . 3 5 8 Power 5 | 1 . 1 . . . 1 2 Engine 2 | 1 . 1 . . . . . Core 3 | . . . . . . 1 2 Reactor . | . . . . . . . . Propulsion 9 | 2 . 1 1 . 1 3 1 Treads 4 | . . . . . . 3 1 Leg 5 | 2 . 1 1 . 1 . . Wheel . | . . . . . . . . Hover . | . . . . . . . . Flight . | . . . . . . . . Utility 8 | 1 2 1 . . 1 . 3 Device 6 | . 2 1 . . 1 . 2 Storage 1 | 1 . . . . . . . Processor 1 | . . . . . . . 1 Hackware . | . . . . . . . . Protection . | . . . . . . . . Artifact . | . . . . . . . . Weapon 9 | 2 . 3 . . 1 1 2 Energy Gun 3 | . . 3 . . . . . Energy Cannon 2 | . . . . . . 1 1 Ballistic Gun 2 | 2 . . . . . . . Ballistic Cannon . | . . . . . . . . Launcher . | . . . . . . . . Special Weapon 1 | . . . . . . . 1 Impact Weapon . | . . . . . . . . Slashing Weapon . | . . . . . . . . Piercing Weapon 1 | . . . . . 1 . . Special Melee Weapon . | . . . . . . . . Unidentified Prototypes 1 | . . . . . 1 . . Corrupted Parts 3 | . . . . . . 3 . System Corruption 14 | . . . . . . 14 . Parts Lost 24 | . . 7 . . . 4 13 Power 3 | . . 1 . . . . 2 Propulsion 9 | . . 2 . . . 3 4 Utility 5 | . . 1 . . . . 4 Weapon 7 | . . 3 . . . 1 3 Highest Loss Streak 13 | . . 7 . . . 4 13 To Critical Strikes . | . . . . . . . . Average Slot Usage (%) 81 | . 92 92 72 77 85 78 57 Engine 8 | . 14 13 11 11 11 3 . Core 2 | . . . . . . 7 4 Treads 5 | . . . . . . 14 15 Leg 21 | . 28 23 17 22 30 9 . Device 10 | . 6 12 11 11 11 11 12 Storage 10 | . 14 14 11 11 11 11 5 Energy Gun 7 | . . 4 22 22 12 3 . Energy Cannon 2 | . . . . . . 6 6 Ballistic Gun 4 | . 28 22 . . . . . Piercing Weapon 7 | . . . . . 9 11 6 Naked Turns . | . . . . . . . . Heaviest Build 25 | 12 13 15 15 15 16 18 25 Greatest Support 124 | 20 26 20 26 26 40 88 124 Greatest Overweight (x) 4 | . . . . . . 4 . Average Overweight (x) . | . . . . . . . . Largest Inventory Capacity 8 | 8 8 8 8 8 8 8 8 Average Capacity 7 | 6 8 8 8 8 8 8 7 Most Carried 8 | 4 8 7 2 2 4 4 3 Average Carried 3 | 1 5 6 1 2 3 3 1 Final Capacity 8 | 8 8 8 8 8 8 8 5 Final Carried 7 | 4 7 1 2 2 3 4 . Class Distribution -------------------- 90% | Mutant 9% | Scavenger-Mutant Dominant Class ---------------- Mutant | -10/Materials Mutant | -10/Mines Mutant | -9/Materials Mutant | -9/Mines Mutant | -7/Zion Mutant | -6/Proximity Caves Scavenger-Mutant | -6/Factory Resources | -11 -10 -10 -9 -9 -7 -6 -6 ----------- Run | Scr Mat Min Mat Min Zio Pro Fac Matter Collected 512 | 205 . 136 25 . 30 60 56 Remotely . | . . . . . . . . Salvage Created 548 | . . 40 141 . . 224 143 Parts 31 | . . 6 4 . . 16 5 Haulers Intercepted . | . . . . . . . . Recyclers Shooed . | . . . . . . . . Parts Field Recycled . | . . . . . . . . Retrieved Matter . | . . . . . . . . Parts Self-Destructed 11 | . . . . . 3 8 . Prevented 7 | . . . . . . 7 . Kills | -11 -10 -10 -9 -9 -7 -6 -6 ------- Run | Scr Mat Min Mat Min Zio Pro Fac Combat Hostiles Destroyed 14 | . . 4 3 . . 5 2 Melee 3 | . . . . . . 1 2 Guns 6 | . . 4 2 . . . . Cannons 2 | . . . . . . 2 . AOE 2 | . . . 1 . . 1 . Classes Destroyed 5 | . . 2 1 . . 2 . Swarmer 6 | . . 3 . . . 3 . Grunt 5 | . . . 3 . . . 2 Demolisher 1 | . . 1 . . . . . Programmer 1 | . . . . . . 1 . Behemoth 1 | . . . . . . 1 . Best Kill Streak 3 | . . 3 2 . . 2 2 Combat Bots Only 3 | . . 3 2 . . 2 2 Max Kills in Single Turn 2 | . . 2 1 . . 1 1 Gunslinging 1 | . . 1 . . . . . Exploded 1 | . . . 1 . . 1 . Melee 1 | . . . . . . 1 1 Uniques/NPCs Destroyed . | . . . . . . . . Combat | -11 -10 -10 -9 -9 -7 -6 -6 -------- Run | Scr Mat Min Mat Min Zio Pro Fac Damage Taken 3429 | . . 640 136 . . 703 1950 Core 1147 | . . 132 32 . . 121 862 Absorbed by Shields . | . . . . . . . . Core Remaining (%) 69 | 100 . 47 . . . 61 . Volleys Fired 37 | . . 12 13 . . 10 2 Largest 3 | . . 2 2 . . 1 3 Hottest 219 | . . 90 95 . . 56 219 Shots Fired 61 | . . 21 26 . . 9 5 Gun 47 | . . 21 26 . . . . Cannon 12 | . . . . . . 9 3 Launcher . | . . . . . . . . Special 2 | . . . . . . . 2 Kinetic 17 | . . 17 . . . . . Thermal 15 | . . . 13 . . . 2 Explosive . | . . . . . . . . Electromagnetic 29 | . . 4 13 . . 9 3 Robot Hit Streak 8 | . . 5 6 . . 6 8 Robot Miss Streak 5 | . . 5 1 . . 1 1 Penetration Max . | . . . . . . . . Secondary Targets 2 | . . 1 1 . . . . Max Gunslinging Chain 1 | . . 1 1 . . . . Shots Hit Robots 56 | . . 12 21 . . 16 7 Core Hits 22 | . . 8 5 . . 5 4 Critical Kills . | . . . . . . . . Critical Parts Destroyed . | . . . . . . . . Critical Strikes 5 | . . . 2 . . 3 . Burn 2 | . . . 2 . . . . Impale 3 | . . . . . . 3 . Melee Attacks 17 | . . . . . . 10 7 Impact . | . . . . . . . . Slashing . | . . . . . . . . Piercing 17 | . . . . . . 10 7 Sneak Attacks . | . . . . . . . . Combat Hostiles . | . . . . . . . . Follow-up Attacks . | . . . . . . . . Damage Inflicted 1140 | . . 168 329 . . 406 237 Guns 457 | . . 168 289 . . . . Cannons 231 | . . . . . . 155 76 Explosions 70 | . . . 40 . . 30 . Melee 382 | . . . . . . 221 161 Ramming . | . . . . . . . . Kinetic 127 | . . 127 . . . . . Thermal 195 | . . . 165 . . 30 . Explosive . | . . . . . . . . Electromagnetic 436 | . . 41 164 . . 155 76 Impact . | . . . . . . . . Slashing . | . . . . . . . . Piercing 382 | . . . . . . 221 161 Highest Corruption 18 | . . . . . . 18 . Average Corruption 11 | . . . . . . 11 . Corruption Purged . | . . . . . . . . Corruption Blocked . | . . . . . . . . Effects 22 | . . . . . . 22 . Message Errors 7 | . . . . . . 7 . Matter Fused 2 | . . . . . . 2 . Heat Flow Errors 4 | . . . . . . 4 . Energy Discharges 4 | . . . . . . 4 . Data Loss (minor) 1 | . . . . . . 1 . Data Loss (major) 2 | . . . . . . 2 . Alerts 1 | . . . . . . 1 . Weapon Failures 1 | . . . . . . 1 . Overload Shots . | . . . . . . . . Overflow Damage 68 | . . . . . . 51 17 Projectiles 14 | . . . . . . 14 . Explosions . | . . . . . . . . Melee 54 | . . . . . . 37 17 Knockbacks . | . . . . . . . . Impact . | . . . . . . . . Kinetic . | . . . . . . . . Secondary . | . . . . . . . . Self-Inflicted Damage 15 | . . . 15 . . . . Shots 1 | . . . 1 . . . . Rammed . | . . . . . . . . Targets Rammed . | . . . . . . . . Kicked . | . . . . . . . . Crushed . | . . . . . . . . Highest Temperature 239 | . . 30 210 . . 239 16 Average Temperature 76 | . . 16 94 . . 73 8 Received Heat Transfer 1053 | . . . 66 . . 48 939 Siege Activations . | . . . . . . . . Robots Corrupted . | . . . . . . . . Combat Hostiles . | . . . . . . . . Parts Fried . | . . . . . . . . Impact Corruptions . | . . . . . . . . Robots Melted . | . . . . . . . . Combat Hostiles . | . . . . . . . . Parts Melted 2 | . . . 2 . . . . Heat Transferred 518 | . . . 518 . . . . Parts Sabotaged . | . . . . . . . . Parts Stolen . | . . . . . . . . Parts Stripped . | . . . . . . . . Power Chain Reactions 2 | . . . 1 . . 1 . Missiles Intercepted . | . . . . . . . . Alert | -11 -10 -10 -9 -9 -7 -6 -6 ------- Run | Scr Mat Min Mat Min Zio Pro Fac Peak Influence 120 | . . 70 120 46 . . 78 Initial 53 | . . . 11 46 . . 53 Average 36 | . . 60 78 46 . . 46 Maximum Alert Level . | . . . . . . . . Low Security (%) 100 | 100 100 100 100 100 . . 100 Level 1 . | . . . . . . . . Level 2 . | . . . . . . . . Level 3 . | . . . . . . . . Level 4 . | . . . . . . . . Level 5 . | . . . . . . . . High Security . | . . . . . . . . Max Security . | . . . . . . . . Squads Dispatched 1 | . . . 1 . . . . Investigation . | . . . . . . . . Extermination . | . . . . . . . . Reinforcement 1 | . . . 1 . . . . Assault . | . . . . . . . . Garrison . | . . . . . . . . Intercept . | . . . . . . . . Searches Triggered . | . . . . . . . . Construction Impeded . | . . . . . . . . Haulers Reinforced . | . . . . . . . . Active Scanning Responses . | . . . . . . . . Cargo Convoy Interrupts . | . . . . . . . . Stealth | -11 -10 -10 -9 -9 -7 -6 -6 --------- Run | Scr Mat Min Mat Min Zio Pro Fac Distress Signals . | . . . . . . . . Communications Jammed . | . . . . . . . . Distress Signals . | . . . . . . . . Times Spotted 22 | . . 8 4 . . 6 4 Peak Tracking Total 5 | . . 5 2 . . 3 4 Tactical Retreats 1 | . . . . . . 1 . Traps | -11 -10 -10 -9 -9 -7 -6 -6 ------- Run | Scr Mat Min Mat Min Zio Pro Fac Traps Triggered . | . . . . . . . . Indirectly . | . . . . . . . . Trap Hack Attempts . | . . . . . . . . Triggered . | . . . . . . . . Disarmed . | . . . . . . . . Reprogrammed . | . . . . . . . . Reused . | . . . . . . . . Traps Extracted . | . . . . . . . . Installed . | . . . . . . . . Triggered . | . . . . . . . . Machines | -11 -10 -10 -9 -9 -7 -6 -6 ---------- Run | Scr Mat Min Mat Min Zio Pro Fac Machines Disabled 1 | . . . 1 . . . . Max in Single Turn 1 | . . . 1 . . . . Machines Sabotaged . | . . . . . . . . Garrisons Compromised . | . . . . . . . . Overloaded Fab Kills . | . . . . . . . . Hacking | -11 -10 -10 -9 -9 -7 -6 -6 --------- Run | Scr Mat Min Mat Min Zio Pro Fac Machines Accessed 1 | . 1 . . . . . . Terminals . | . . . . . . . . Fabricators . | . . . . . . . . Repair Stations . | . . . . . . . . Recycling Units 1 | . 1 . . . . . . Scanalyzers . | . . . . . . . . Garrison Access . | . . . . . . . . Total Hacks 1 | . 1 . . . . . . Successful 1 | . 1 . . . . . . Failed . | . . . . . . . . Catastrophic . | . . . . . . . . Database Lockouts . | . . . . . . . . Manual 3 | . . . . . 3 . . Terminals . | . . . . . . . . Fabricators . | . . . . . . . . Repair Stations . | . . . . . . . . Recycling Units 1 | . 1 . . . . . . Scanalyzers . | . . . . . . . . Garrison Access . | . . . . . . . . Terminal Hacks . | . . . . . . . . Fabricator Hacks . | . . . . . . . . Repair Station Hacks . | . . . . . . . . Recycling Unit Hacks 1 | . 1 . . . . . . Report Inventory 1 | . 1 . . . . . . Scanalyzer . | . . . . . . . . Garrison Access Hacks . | . . . . . . . . Unauthorized Hacks . | . . . . . . . . Terminals . | . . . . . . . . Fabricators . | . . . . . . . . Repair Stations . | . . . . . . . . Recycling Units . | . . . . . . . . Scanalyzers . | . . . . . . . . Garrison Access . | . . . . . . . . Data Cores Recovered . | . . . . . . . . Used . | . . . . . . . . Hacking Detections 1 | . 1 . . . . . . Full Trace Events . | . . . . . . . . Feedback Events . | . . . . . . . . Feedback Blocked . | . . . . . . . . Robot Schematics Acquired 2 | . . . . . 2 . . Robots Built . | . . . . . . . . Authchips . | . . . . . . . . Time . | . . . . . . . . Total Robot Build Rating . | . . . . . . . . Part Schematics Acquired 15 | . . . . . 15 . . Parts Built . | . . . . . . . . Authchips . | . . . . . . . . Time . | . . . . . . . . Total Part Build Rating . | . . . . . . . . Parts Repaired . | . . . . . . . . Time . | . . . . . . . . Parts Recycled . | . . . . . . . . Recycled Matter . | . . . . . . . . Retrieved Matter . | . . . . . . . . Retrieved Components . | . . . . . . . . Parts Scanalyzed . | . . . . . . . . Part Schematics Acquired . | . . . . . . . . Parts Damaged . | . . . . . . . . Bothacking | -11 -10 -10 -9 -9 -7 -6 -6 ------------ Run | Scr Mat Min Mat Min Zio Pro Fac Used RIF Installer . | . . . . . . . . Robots Hacked . | . . . . . . . . Non-combat . | . . . . . . . . Combat . | . . . . . . . . Robot Hacks Applied . | . . . . . . . . Relay Couplers Released . | . . . . . . . . Fabnet Peak Effective % . | . . . . . . . . Robots Rewired . | . . . . . . . . Allies Hacked . | . . . . . . . . Hacks Repelled . | . . . . . . . . Allies | -11 -10 -10 -9 -9 -7 -6 -6 -------- Run | Scr Mat Min Mat Min Zio Pro Fac Total Allies 6 | . . . . . 6 . . Largest Group 6 | . . . . . 6 1 . Highest-Rated Group 228 | . . . . . 228 51 . Highest-Rated Ally 51 | . . . . . 51 51 . Total Orders . | . . . . . . . . Ally Attacks 5 | . . . . . . 5 . Total Damage 135 | . . . . . . 135 . Kills . | . . . . . . . . Allies Corrupted . | . . . . . . . . Allies Melted . | . . . . . . . . Intel | -11 -10 -10 -9 -9 -7 -6 -6 ------- Run | Scr Mat Min Mat Min Zio Pro Fac Robot Analysis Total . | . . . . . . . . Derelict Logs Recovered 3 | . . 1 . . 1 1 . Drone Launches 1 | . . . . . 1 . . Drone Recoveries . | . . . . . . . . Exploration | -11 -10 -10 -9 -9 -7 -6 -6 ------------- Run | Scr Mat Min Mat Min Zio Pro Fac Turns Passed 2980 | 57 291 234 106 18 1285 688 301 Spaces Moved 2055 | 44 232 139 42 16 1039 418 125 Core 31 | 12 . . . . . 12 7 Treads 363 | . . . . . . 245 118 Legs 1661 | 32 232 139 42 16 1039 161 . Wheels . | . . . . . . . . Hover . | . . . . . . . . Flight . | . . . . . . . . Fastest Speed 50 | 50 120 120 120 120 120 123 50 Average Speed 128 | 100 120 120 120 120 122 148 153 Slowest Speed 250 | 120 120 120 120 120 123 250 160 Overloaded Moves . | . . . . . . . . Propulsion Burnouts . | . . . . . . . . Robots Hopped . | . . . . . . . . Cave-ins Triggered . | . . . . . . . . Exploration Rate (%) 30 | 4 38 39 4 6 87 61 3 Regions Visited 7 Branch Regions 4 Pre-discovered Areas 2 | . . . . . 1 1 . Known Exits Taken . | . . . . . . . . Unknown Exits Taken 7 | 1 1 1 1 1 1 1 . Scrap Searched 5 | . . . . . 4 1 . Spaces Dug . | . . . . . . . . Terrain Destroyed 8 | . . . 2 . . 6 . Melee . | . . . . . . . . Projectile . | . . . . . . . . AOE 8 | . . . 2 . . 6 . Terrain Rammed . | . . . . . . . . Walls Destroyed . | . . . . . . . . Machines Disabled . | . . . . . . . . Actions | -11 -10 -10 -9 -9 -7 -6 -6 --------- Run | Scr Mat Min Mat Min Zio Pro Fac Total 2286 | 53 245 185 71 15 1051 453 213 Wait 128 | . 1 29 15 . 7 7 69 Move 2048 | 43 231 138 41 15 1038 417 125 Hop . | . . . . . . . . Pick Up 17 | 4 7 . 1 . 2 3 . Fast Attach 15 | 6 1 . 1 . 1 3 3 Attach 11 | . . 6 . . . 1 4 Detach 1 | . . . . . . . 1 Swap 5 | . 1 . . . 2 1 1 Drop 7 | . 4 . . . 1 1 1 Fire 37 | . . 12 13 . . 10 2 Melee 17 | . . . . . . 10 7 Ram . | . . . . . . . . Kick . | . . . . . . . . Crush . | . . . . . . . . Escape Stasis . | . . . . . . . . Rewire . | . . . . . . . . Trap . | . . . . . . . . Miscellaneous . | . . . . . . . . Route ------- -11/Scrapyard -10/Materials -10/Mines -9/Materials -9/Mines -7/Zion -6/Proximity Caves -6/Factory History --------- Turn | Location | Event 7 | -11/Scrapyard | Discovered new exit (range 16) 58 | -11/Scrapyard | Entered Materials 288 | -10/Materials | Discovered new exit (range 15) 305 | -10/Materials | Build established: Mutant 349 | -10/Materials | Entered Mines 483 | -10/Mines | Learned Materials emergency access door positions 511 | -10/Mines | Assembled infested the area 511 | -10/Mines | Discovered new exit (range 10) 550 | -10/Mines | Core integrity fell below 50% 578 | -10/Mines | Lost 7 parts (1p2n1u3w) 583 | -10/Mines | Entered Materials 583 | -9/Materials | Evolved 2 slots: Propulsion x2 583 | -9/Materials | Discovered new exit (range 15) 689 | -9/Materials | Entered Mines 690 | -9/Mines | A Derelict revealed a hidden shortcut to a safe place 707 | -9/Mines | Entered Zion 751 | -7/Zion | Given the Hacking Drone Bay 760 | -7/Zion | Found Prototype Device 761 | -7/Zion | Identified Hacking Drone Bay 878 | -7/Zion | Found CR-A16's Pointy Stick 1127 | -7/Zion | Learned Factory emergency access door positions 1288 | -7/Zion | Received a visual enhancement algorithm 1472 | -7/Zion | Gained Derelict followers 1541 | -7/Zion | Imprinted 1544 | -7/Zion | Declared Zion's savior 1980 | -7/Zion | Discovered new exit (range 11) 1992 | -7/Zion | Entered Proximity Caves 1992 | -6/Proximity Caves | Accompanied by 2 allies 2155 | -6/Proximity Caves | Spotted B-75 Beast 2183 | -6/Proximity Caves | Revealed the true nature of CR-A16's Pointy Stick 2188 | -6/Proximity Caves | Destroyed B-75 Beast 2255 | -6/Proximity Caves | Lost 4 parts (3n1w) 2266 | -6/Proximity Caves | System corruption reached 10% 2660 | -6/Proximity Caves | Discovered new exit (range 12) 2680 | -6/Proximity Caves | Entered Factory 2680 | -6/Factory | Accompanied by 1 ally 2680 | -6/Factory | Evolved 6 slots: Propulsion x2, Utility x2, Weapon x2 2948 | -6/Factory | Core integrity fell below 50% 2970 | -6/Factory | Core integrity fell below 20% 2981 | -6/Factory | Destroyed by G-50 Soldier with Heavy Laser Last Messages --------------- 02893_ Imp. Medium Treads destroyed. 02894_ G-67 Veteran destroyed. 02897_ Acquired 56 matter. 02899_ Mining Laser destroyed. 02901_ R-10 Processor collects Flexi-carbon Leg. 02902_ Lgt. Fission Core destroyed. 02904_ R-10 Processor collects Lgt. Angular Momentum Engine. 02908_ R-10 Processor collects Adv. Heat Sink. 02911_ R-10 Processor collects Plasma Rifle. 02913_ Imp. Medium Treads destroyed. 02914_ R-10 Processor collects Field Laser. 02917_ Critical hit (Burn: +37). 02921_ Imp. Medium Treads destroyed. 02933_ Imp. Heat Sink destroyed. 02939_ Adv. Melee Analysis Suite destroyed. 02949_ Sml. Storage Unit destroyed. 02959_ Mic. Nuclear Core destroyed. 02962_ Destroyed Lgt. Angular Momentum Engine. 02965_ Critical hit (Burn: +37). 02979_ Weight Redist. System destroyed. Map ----- +----------------------------------------------------+ | ?????????????????????????????????????????????????? | | ?????????????????????????????????????????????????? | | ?????????????????????????????????????????????????? | | ??????????????????????????+??????????????????????? | | ?????????????????????????????????????????????????? | | ?????????????????????????????????????????????????? | | ?????????????????????????????????????????????????? | | ?????????????????????????????????????????????????? | | ?????????????#???????????????????????????????????? | | ?????????????# #########+######??????????????????? | | ?????????????# ? ???????????????? | | ?????????????# ^ ???????????????? | | ?????????????+ """ ""???????????????? | | ?????????????# ""F ""???????????????? | | ?????????????# "" ""???????????????? | | ??????????????####+### """ """"""???????????? | | ?????????????????????# """ ???????????? | | ?????????????????????# ??????????? | | ?????????????????????# ??????????? | | ?????????????????????# ??????????? | | ??????????????????####+##### ??????????? | | ????????########### % # ????????????? | | ????????#! # % ""#? ####????????????? | | ????????# + T"#?? #???????????????? | | ????????# # ""#???? #???????????????? | | ????????? #g @g#???? #???????????????? | | ????????# """ """ # """ #??? #???????????????? | | ????????# """ """ # """ #?? +???????????????? | | ????????# """ """ # = """ #? #???????????????? | | #######?# # # #???????????????? | | #########+######+##### ####+#??????????? | | """" # ?????????? | | """" # ?????????? | | """" # ?????????? | | """" + ?????????? | | """" # ?????????? | | """" # ##########+######+#########??????????? | | """" # #????# !!!#?????????????????????? | | #######????#"" !! #?????????????????????? | | #######??????????#"" !! #?????????????????????? | | ?????????????????#"T #????????+????????????? | | ?????????????????#"" """ #?????????????????????? | | ?????????????????#"" """ #?????????????????????? | | ?????????????????# """ #?????????????????????? | | ?????????????????# #?????????????????????? | | ?????????????????###########?????????????????????? | | ?????????????????????????????????????????????????? | | ?????????????????????????????????????????????????? | | ?????????????????????????????????????????????????? | | ?????????????????????????????????????????????????? | +----------------------------------------------------+ Best States ------------- Heat Dissipation 51 Energy Generation 18 Energy Capacity 250 Matter Stores 300 Matter Capacity 300 Sight Range 16 Terrain Scan Range 14 Terrain Scan Density 10 Additional Mass Support 6 Evasion (%) 55 Melee Accuracy 8 Recoil Reduction 4 Item Schematics ----------------- Coolant Injector | -7/Zion | Archive Imp. System Restoration Module | -7/Zion | Archive Transmission Jammer | -7/Zion | Archive Hvy. Flak Cannon | -7/Zion | Archive Lightning Gun | -7/Zion | Archive Adv. Melee Analysis Suite | -7/Zion | Archive Imp. Shield Generator | -7/Zion | Archive Imp. Coolant Injector | -7/Zion | Archive Lyr. Heavy Armor Plating | -7/Zion | Archive Imp. Titanium Leg | -7/Zion | Archive Hpw. Shock Rifle | -7/Zion | Archive Imp. EM Pulse Cannon | -7/Zion | Archive Thermal Shield | -7/Zion | Archive Energy Filter | -7/Zion | Archive Adv. Sensor Array | -7/Zion | Archive Robot Schematics ------------------ Y-45 Defender | -7/Zion | Archive T-07 Excavator | -7/Zion | Archive Fabricated ------------ Nothing Alien Tech Used ----------------- None Achievements -------------- None Challenges ------------ None Game ------ Seed FireLaserRefractor Manual? 0 Play Time 00:39:14 Cumulative 14.3 hours Start 2022.04.01 @ 21:52:03 End 2022.04.01 @ 22:32:02 Sessions 1 Manual Loads 0 Difficulty Rogue Special Mode None Game No. 12 Rogue 12 Adventurer 0 Explorer 0 Win Type - Total 0 Types 0/0/0/0/0/0/0/0/0 Lore% 20 Gallery% 17 Achievement% 16 Wizard Run 0 Options --------- ASCII 0 Keyboard 1 Movement Numpad Keybinds 0 Fullscreen 1 Font 18/TerminusBold Map View 76x50 Tactical HUD 1 Map Filters NONE Filters NONE Steam 1 RUN: 2c0b79e0-eaa3-4764-b248-46402969358e